[Event "Late-Titled-Tuesday-Blitz-October-03-2023"]
[Site "Chess.com"]
[Date "2023.10.03"]
[Round "9"]
[White "TanitoluwaAps116"]
[Black "TheoSlade"]
[Result "1-0"]
[WhiteElo "2665"]
[BlackElo "2509"]
[TimeControl "180+1"]
[EndTime "15:40:34 PDT"]
[Termination "TanitoluwaAps116 won by checkmate"]

1. e4 {[%clk 0:01:58.8]} 1... e5 {[%clk 0:03:00]} 2. Nf3 {[%clk 0:01:56.8]} 2...
Nc6 {[%clk 0:03:00.7]} 3. Nc3 {[%clk 0:01:56.5]} 3... Nf6 {[%clk 0:03:00.5]} 4.
Bb5 {[%clk 0:01:56.1]} 4... Nd4 {[%clk 0:02:59.9]} 5. Nxd4 {[%clk 0:01:54.7]}
5... exd4 {[%clk 0:03:00.5]} 6. e5 {[%clk 0:01:55.6]} 6... dxc3 {[%clk 0:03:00]}
7. exf6 {[%clk 0:01:55.7]} 7... Qxf6 {[%clk 0:02:55.1]} 8. dxc3 {[%clk
0:01:54.7]} 8... Bc5 {[%clk 0:02:48.3]} 9. O-O {[%clk 0:01:52.2]} 9... O-O
{[%clk 0:02:45]} 10. Bd3 {[%clk 0:01:50.2]} 10... d6 {[%clk 0:02:38.5]} 11. Qh5
{[%clk 0:01:43.3]} 11... g6 {[%clk 0:02:38.2]} 12. Qh6 {[%clk 0:01:42.9]} 12...
Re8 {[%clk 0:02:30.5]} 13. Bg5 {[%clk 0:01:38.1]} 13... Qg7 {[%clk 0:02:29.7]}
14. Qh4 {[%clk 0:01:35.8]} 14... Be6 {[%clk 0:02:16.3]} 15. Bf6 {[%clk
0:01:28.9]} 15... Qf8 {[%clk 0:02:16.6]} 16. Rae1 {[%clk 0:01:27.9]} 16... d5
{[%clk 0:02:15.8]} 17. Re5 {[%clk 0:01:04.3]} 17... c6 {[%clk 0:01:48.4]} 18.
Rfe1 {[%clk 0:00:37.8]} 18... h6 {[%clk 0:01:14.8]} 19. h3 {[%clk 0:00:27.4]}
19... Bd7 {[%clk 0:01:10.3]} 20. Qg3 {[%clk 0:00:16.9]} 20... Kh7 {[%clk
0:00:58.4]} 21. h4 {[%clk 0:00:14]} 21... Rxe5 {[%clk 0:00:53.5]} 22. Rxe5
{[%clk 0:00:12.9]} 22... Re8 {[%clk 0:00:38.8]} 23. h5 {[%clk 0:00:12.6]} 23...
Qg8 {[%clk 0:00:39.5]} 24. hxg6+ {[%clk 0:00:05.9]} 24... fxg6 {[%clk
0:00:40.4]} 25. Rg5 {[%clk 0:00:04.8]} 25... Bf5 {[%clk 0:00:10.6]} 26. Bxf5
{[%clk 0:00:04.5]} 26... Re1+ {[%clk 0:00:04.7]} 27. Kh2 {[%clk 0:00:04.8]}
27... Bd6 {[%clk 0:00:02.4]} 28. Qxd6 {[%clk 0:00:04]} 28... hxg5 {[%clk
0:00:02]} 29. Qc7+ {[%clk 0:00:04.2]} 29... Kh6 {[%clk 0:00:01.9]} 30. Bd3
{[%clk 0:00:04.3]} 30... g4 {[%clk 0:00:01.9]} 31. Qf4+ {[%clk 0:00:04.2]} 31...
Kh7 {[%clk 0:00:02.1]} 32. Qg5 {[%clk 0:00:04.4]} 32... Qe6 {[%clk 0:00:02.3]}
33. Qxg6# {[%clk 0:00:03.7]} 1-0

[Event "Late-Titled-Tuesday-Blitz-October-03-2023"]
[Site "Chess.com"]
[Date "2023.10.03"]
[Round "9"]
[White "szachmistrz2500"]
[Black "angryspacevoid"]
[Result "1-0"]
[WhiteElo "2450"]
[BlackElo "2532"]
[TimeControl "180+1"]
[EndTime "15:40:34 PDT"]
[Termination "szachmistrz2500 won by resignation"]

1. Nf3 {[%clk 0:03:00.9]} 1... c5 {[%clk 0:02:57.1]} 2. g3 {[%clk 0:03:01.8]}
2... Nc6 {[%clk 0:02:56.6]} 3. Bg2 {[%clk 0:03:02.3]} 3... e5 {[%clk 0:02:57.3]}
4. e4 {[%clk 0:03:00.3]} 4... f5 {[%clk 0:02:46]} 5. d3 {[%clk 0:02:57.8]} 5...
Nf6 {[%clk 0:02:45.4]} 6. O-O {[%clk 0:02:56.9]} 6... d6 {[%clk 0:02:41.5]} 7.
Re1 {[%clk 0:02:51.9]} 7... Be7 {[%clk 0:02:40.4]} 8. c3 {[%clk 0:02:48.9]} 8...
O-O {[%clk 0:02:23.5]} 9. Qb3+ {[%clk 0:02:48.2]} 9... Kh8 {[%clk 0:02:22.2]}
10. Ng5 {[%clk 0:02:48.4]} 10... Qe8 {[%clk 0:02:17.6]} 11. a4 {[%clk
0:02:31.2]} 11... Bd8 {[%clk 0:02:05.3]} 12. Na3 {[%clk 0:02:17.6]} 12... h6
{[%clk 0:02:01.5]} 13. Nf3 {[%clk 0:02:17.6]} 13... fxe4 {[%clk 0:01:55.6]} 14.
dxe4 {[%clk 0:02:16.9]} 14... Rb8 {[%clk 0:01:38.7]} 15. Nh4 {[%clk 0:02:09.8]}
15... Be6 {[%clk 0:01:25.3]} 16. Qc2 {[%clk 0:02:09]} 16... Qh5 {[%clk
0:01:22.5]} 17. Nf5 {[%clk 0:02:01.9]} 17... d5 {[%clk 0:01:09.6]} 18. h3 {[%clk
0:01:33]} 18... Nxe4 {[%clk 0:01:04.5]} 19. g4 {[%clk 0:01:32.4]} 19... Qg6
{[%clk 0:01:02.2]} 20. Bxe4 {[%clk 0:01:30.1]} 20... dxe4 {[%clk 0:00:59.9]} 21.
Ng3 {[%clk 0:01:30.1]} 21... Bh4 {[%clk 0:00:42.7]} 22. Qxe4 {[%clk 0:01:11.3]}
22... Qf7 {[%clk 0:00:41.6]} 23. Qe2 {[%clk 0:01:06.4]} 23... e4 {[%clk
0:00:32.2]} 24. Be3 {[%clk 0:00:56.6]} 24... Ne5 {[%clk 0:00:27.1]} 25. Bxc5
{[%clk 0:00:47.7]} 25... Bd5 {[%clk 0:00:19.7]} 26. Be3 {[%clk 0:00:32.9]} 26...
Nf3+ {[%clk 0:00:19.6]} 27. Kg2 {[%clk 0:00:32.8]} 27... Nxe1+ {[%clk
0:00:18.5]} 28. Rxe1 {[%clk 0:00:33.7]} 28... Bxg3 {[%clk 0:00:18]} 29. Kxg3
{[%clk 0:00:33.3]} 29... Qc7+ {[%clk 0:00:16.7]} 30. Kg2 {[%clk 0:00:32.7]}
30... Rf3 {[%clk 0:00:17.3]} 31. Nb5 {[%clk 0:00:30.8]} 31... Qf7 {[%clk
0:00:15.5]} 32. Nd4 {[%clk 0:00:30.5]} 32... Rf8 {[%clk 0:00:15.3]} 33. Qb5
{[%clk 0:00:29.3]} 33... Rxf2+ {[%clk 0:00:14.7]} 34. Kg1 {[%clk 0:00:28.6]}
34... Bc4 {[%clk 0:00:12.3]} 35. Qe5 {[%clk 0:00:26.8]} 35... Rf1+ {[%clk
0:00:12.6]} 36. Rxf1 {[%clk 0:00:26.3]} 36... Qxf1+ {[%clk 0:00:13.5]} 37. Kh2
{[%clk 0:00:26.8]} 37... Qd3 {[%clk 0:00:10.1]} 38. Qg3 {[%clk 0:00:23.6]} 38...
Bb3 {[%clk 0:00:08.2]} 39. Nf5 {[%clk 0:00:23.1]} 39... g6 {[%clk 0:00:07.3]}
40. Qe5+ {[%clk 0:00:23.1]} 1-0

[Event "Late-Titled-Tuesday-Blitz-October-03-2023"]
[Site "Chess.com"]
[Date "2023.10.03"]
[Round "9"]
[White "Rodalquilar"]
[Black "zajka-molotok"]
[Result "1-0"]
[WhiteElo "2740"]
[BlackElo "2567"]
[TimeControl "180+1"]
[EndTime "15:40:37 PDT"]
[Termination "Rodalquilar won by resignation"]

1. d4 {[%clk 0:03:00.9]} 1... d5 {[%clk 0:02:57]} 2. Nf3 {[%clk 0:03:01.2]} 2...
Nf6 {[%clk 0:02:56.1]} 3. Bf4 {[%clk 0:03:01.5]} 3... c5 {[%clk 0:02:54.9]} 4.
e3 {[%clk 0:03:01.9]} 4... Nc6 {[%clk 0:02:54.7]} 5. Nbd2 {[%clk 0:03:02.3]}
5... cxd4 {[%clk 0:02:53.1]} 6. exd4 {[%clk 0:03:02.4]} 6... Bg4 {[%clk
0:02:53]} 7. c3 {[%clk 0:03:02.3]} 7... e6 {[%clk 0:02:53.1]} 8. Qb3 {[%clk
0:03:01.1]} 8... Bd6 {[%clk 0:02:52.7]} 9. Qxb7 {[%clk 0:02:59.8]} 9... Bxf4
{[%clk 0:02:52.3]} 10. Qxc6+ {[%clk 0:03:00.1]} 10... Kf8 {[%clk 0:02:52.5]} 11.
Ne5 {[%clk 0:03:00.5]} 11... g6 {[%clk 0:02:15.4]} 12. Qb7 {[%clk 0:02:20.8]}
12... Bxe5 {[%clk 0:01:59.3]} 13. dxe5 {[%clk 0:02:21.3]} 13... Rb8 {[%clk
0:01:54.9]} 14. Qxa7 {[%clk 0:02:13.3]} 14... Nd7 {[%clk 0:01:45.5]} 15. h3
{[%clk 0:01:34.9]} 15... Bf5 {[%clk 0:01:35]} 16. g4 {[%clk 0:01:34.9]} 16...
Bc2 {[%clk 0:01:25.2]} 17. Rc1 {[%clk 0:01:34.4]} 17... Be4 {[%clk 0:01:09.6]}
18. f3 {[%clk 0:01:33.5]} 18... Nxe5 {[%clk 0:00:51.3]} 19. fxe4 {[%clk
0:01:30.1]} 19... Kg7 {[%clk 0:00:43.4]} 20. b3 {[%clk 0:01:04]} 20... Rb6
{[%clk 0:00:30.7]} 21. Be2 {[%clk 0:00:53.9]} 21... Qh4+ {[%clk 0:00:25.2]} 22.
Kd1 {[%clk 0:00:53.7]} 22... Rhb8 {[%clk 0:00:23.7]} 23. exd5 {[%clk 0:00:48.2]}
23... exd5 {[%clk 0:00:22.3]} 24. Qc7 {[%clk 0:00:45.5]} 24... Qg3 {[%clk
0:00:17.7]} 25. Rf1 {[%clk 0:00:44.8]} 25... Qe3 {[%clk 0:00:16.6]} 26. b4
{[%clk 0:00:34.4]} 26... R8b7 {[%clk 0:00:16.3]} 27. Qc5 {[%clk 0:00:34.2]}
27... Qxh3 {[%clk 0:00:14.3]} 28. Qd4 {[%clk 0:00:32.2]} 28... f6 {[%clk
0:00:14.4]} 29. g5 {[%clk 0:00:32.8]} 29... Re6 {[%clk 0:00:13.4]} 30. Rxf6
{[%clk 0:00:28.6]} 30... Rbe7 {[%clk 0:00:12.3]} 31. Rxe6 {[%clk 0:00:27]} 31...
Rxe6 {[%clk 0:00:13.2]} 32. Nf3 {[%clk 0:00:26.7]} 32... Kg8 {[%clk 0:00:05.8]}
33. Nxe5 {[%clk 0:00:26.6]} 33... Qh1+ {[%clk 0:00:05.4]} 34. Kd2 {[%clk
0:00:24]} 34... Qg2 {[%clk 0:00:05.9]} 35. Rf1 {[%clk 0:00:18.2]} 35... Qxg5+
{[%clk 0:00:05.1]} 36. Qf4 {[%clk 0:00:18.8]} 36... Qxf4+ {[%clk 0:00:03.7]} 37.
Rxf4 {[%clk 0:00:19.7]} 37... Rxe5 {[%clk 0:00:04.5]} 38. b5 {[%clk 0:00:20.3]}
1-0

[Event "Late-Titled-Tuesday-Blitz-October-03-2023"]
[Site "Chess.com"]
[Date "2023.10.03"]
[Round "9"]
[White "Mesa_1"]
[Black "miraitrunks"]
[Result "1-0"]
[WhiteElo "2601"]
[BlackElo "2221"]
[TimeControl "180+1"]
[EndTime "15:40:40 PDT"]
[Termination "Mesa_1 won by resignation"]

1. Nf3 {[%clk 0:03:00.9]} 1... Nf6 {[%clk 0:02:59]} 2. c4 {[%clk 0:02:56.9]}
2... g6 {[%clk 0:02:57.8]} 3. Nc3 {[%clk 0:02:57.2]} 3... Bg7 {[%clk 0:02:58.3]}
4. e4 {[%clk 0:02:57.9]} 4... d6 {[%clk 0:02:57.7]} 5. d4 {[%clk 0:02:58.5]}
5... O-O {[%clk 0:02:57.4]} 6. Be2 {[%clk 0:02:59.1]} 6... e5 {[%clk 0:02:57.7]}
7. d5 {[%clk 0:02:59.7]} 7... Na6 {[%clk 0:02:56.1]} 8. Be3 {[%clk 0:02:57.3]}
8... Nc5 {[%clk 0:02:55.3]} 9. Nd2 {[%clk 0:02:57.4]} 9... a5 {[%clk 0:02:52.2]}
10. a3 {[%clk 0:02:57.9]} 10... Ne8 {[%clk 0:02:42.3]} 11. b4 {[%clk 0:02:56.9]}
11... axb4 {[%clk 0:02:41.3]} 12. axb4 {[%clk 0:02:57.8]} 12... Rxa1 {[%clk
0:02:41.9]} 13. Qxa1 {[%clk 0:02:58.7]} 13... Nd7 {[%clk 0:02:42.4]} 14. c5
{[%clk 0:02:56]} 14... f5 {[%clk 0:02:41.7]} 15. c6 {[%clk 0:02:55.8]} 15...
bxc6 {[%clk 0:02:41.4]} 16. dxc6 {[%clk 0:02:56.7]} 16... Nb6 {[%clk 0:02:37.6]}
17. Bxb6 {[%clk 0:02:35.3]} 17... cxb6 {[%clk 0:02:38.5]} 18. b5 {[%clk
0:02:34.1]} 18... fxe4 {[%clk 0:02:31.3]} 19. Qa2+ {[%clk 0:02:30.8]} 19... Kh8
{[%clk 0:02:30.1]} 20. Ndxe4 {[%clk 0:02:28.9]} 20... Nf6 {[%clk 0:02:27.2]} 21.
Nxf6 {[%clk 0:02:24.6]} 21... Qxf6 {[%clk 0:02:26.6]} 22. O-O {[%clk 0:02:23.9]}
22... Qg5 {[%clk 0:02:18.5]} 23. Kh1 {[%clk 0:02:06.9]} 23... Qh4 {[%clk
0:01:40]} 24. Kg1 {[%clk 0:01:32.1]} 24... Qg5 {[%clk 0:01:39.2]} 25. Ne4 {[%clk
0:01:26.8]} 25... Qf4 {[%clk 0:01:17.2]} 26. Qd5 {[%clk 0:01:16.5]} 26... Rf5
{[%clk 0:00:37.2]} 27. Nxd6 {[%clk 0:01:14.2]} 27... Rg5 {[%clk 0:00:36.1]} 28.
Nxc8 {[%clk 0:01:10]} 28... e4 {[%clk 0:00:34.2]} 29. Qd8+ {[%clk 0:01:05]}
29... Bf8 {[%clk 0:00:33.9]} 30. g3 {[%clk 0:00:53.3]} 30... e3 {[%clk
0:00:32.7]} 31. c7 {[%clk 0:00:34.5]} 31... Kg7 {[%clk 0:00:25]} 32. Nd6 {[%clk
0:00:29.4]} 32... Bxd6 {[%clk 0:00:19.2]} 33. Qxg5 {[%clk 0:00:20.7]} 33...
exf2+ {[%clk 0:00:17.1]} 34. Kg2 {[%clk 0:00:16.4]} 34... Qxg5 {[%clk
0:00:17.3]} 35. c8=Q {[%clk 0:00:16.7]} 35... Qd5+ {[%clk 0:00:17.3]} 36. Bf3
{[%clk 0:00:15]} 1-0

[Event "Late-Titled-Tuesday-Blitz-October-03-2023"]
[Site "Chess.com"]
[Date "2023.10.03"]
[Round "9"]
[White "GM_dmitrij"]
[Black "Alexandr_Predke"]
[Result "1-0"]
[WhiteElo "3052"]
[BlackElo "2884"]
[TimeControl "180+1"]
[EndTime "15:40:43 PDT"]
[Termination "GM_dmitrij won on time"]

1. e4 {[%clk 0:03:00.9]} 1... c5 {[%clk 0:02:59.7]} 2. Nf3 {[%clk 0:02:59.4]}
2... e6 {[%clk 0:03:00.4]} 3. d4 {[%clk 0:02:56.7]} 3... cxd4 {[%clk 0:03:01.3]}
4. Nxd4 {[%clk 0:02:57.6]} 4... a6 {[%clk 0:03:00.9]} 5. c4 {[%clk 0:02:56.9]}
5... Nf6 {[%clk 0:02:56.8]} 6. Nc3 {[%clk 0:02:57]} 6... Qc7 {[%clk 0:02:57.3]}
7. Be2 {[%clk 0:02:56.6]} 7... Bb4 {[%clk 0:02:53.6]} 8. O-O {[%clk 0:02:56.7]}
8... Bxc3 {[%clk 0:02:52.9]} 9. bxc3 {[%clk 0:02:57.6]} 9... Nxe4 {[%clk
0:02:53.1]} 10. Bf3 {[%clk 0:02:57.1]} 10... Nc5 {[%clk 0:02:48.2]} 11. Nb3
{[%clk 0:02:55.3]} 11... d6 {[%clk 0:02:37.2]} 12. Bf4 {[%clk 0:02:54.9]} 12...
e5 {[%clk 0:02:37.5]} 13. Be3 {[%clk 0:02:55.5]} 13... O-O {[%clk 0:02:21.7]}
14. Nxc5 {[%clk 0:02:49.5]} 14... dxc5 {[%clk 0:02:22.6]} 15. Qd5 {[%clk
0:02:48.4]} 15... Nc6 {[%clk 0:02:23.2]} 16. Qxc5 {[%clk 0:02:46.7]} 16... Be6
{[%clk 0:02:15.3]} 17. Rab1 {[%clk 0:02:45.6]} 17... Rac8 {[%clk 0:02:02.3]} 18.
a4 {[%clk 0:02:37.6]} 18... Rfe8 {[%clk 0:01:58.5]} 19. Rfd1 {[%clk 0:02:27.6]}
19... Qe7 {[%clk 0:01:25.3]} 20. Qxe7 {[%clk 0:02:11.8]} 20... Rxe7 {[%clk
0:01:20.5]} 21. Bc5 {[%clk 0:02:11.8]} 21... Rec7 {[%clk 0:01:17.1]} 22. Bd6
{[%clk 0:02:11.2]} 22... Rd7 {[%clk 0:01:16]} 23. c5 {[%clk 0:02:11.8]} 23... f6
{[%clk 0:01:11]} 24. Rb6 {[%clk 0:02:10.8]} 24... Kf7 {[%clk 0:01:07.6]} 25.
Rdb1 {[%clk 0:02:09.3]} 25... Na5 {[%clk 0:00:46.1]} 26. h4 {[%clk 0:02:08.8]}
26... g6 {[%clk 0:00:42]} 27. Bxb7 {[%clk 0:02:08]} 27... Nxb7 {[%clk
0:00:40.2]} 28. Rxb7 {[%clk 0:02:08.9]} 28... h5 {[%clk 0:00:34.3]} 29. R1b6
{[%clk 0:02:06.3]} 29... Rc6 {[%clk 0:00:22.5]} 30. a5 {[%clk 0:02:00.2]} 30...
Bf5 {[%clk 0:00:10.9]} 31. Rb8 {[%clk 0:01:42.6]} 31... Be4 {[%clk 0:00:06.6]}
32. f3 {[%clk 0:01:28.2]} 32... Bd5 {[%clk 0:00:06.9]} 33. c4 {[%clk 0:01:27.1]}
33... Rxb6 {[%clk 0:00:05.5]} 34. cxb6 {[%clk 0:01:07.2]} 34... Bc6 {[%clk
0:00:05.8]} 35. c5 {[%clk 0:01:06.5]} 35... Ke6 {[%clk 0:00:06.4]} 36. Kf2
{[%clk 0:01:03.3]} 36... Kd5 {[%clk 0:00:05.6]} 37. Rg8 {[%clk 0:01:01.5]} 37...
f5 {[%clk 0:00:04.2]} 38. Rxg6 {[%clk 0:01:00]} 38... e4 {[%clk 0:00:04.6]} 39.
Rg5 {[%clk 0:00:57.2]} 39... Kd4 {[%clk 0:00:04.6]} 40. Rxf5 {[%clk 0:00:44]}
40... e3+ {[%clk 0:00:05.2]} 41. Ke1 {[%clk 0:00:44.6]} 41... Kd3 {[%clk
0:00:04.2]} 42. Rf6 {[%clk 0:00:34.8]} 42... Bb5 {[%clk 0:00:04.1]} 43. Bf4
{[%clk 0:00:31.1]} 43... e2 {[%clk 0:00:01.6]} 44. c6 {[%clk 0:00:29.2]} 1-0

[Event "Late-Titled-Tuesday-Blitz-October-03-2023"]
[Site "Chess.com"]
[Date "2023.10.03"]
[Round "9"]
[White "emeli_chess"]
[Black "MathiasWomacka"]
[Result "0-1"]
[WhiteElo "2362"]
[BlackElo "2503"]
[TimeControl "180+1"]
[EndTime "15:40:44 PDT"]
[Termination "MathiasWomacka won by resignation"]

1. d4 {[%clk 0:03:00.9]} 1... Nf6 {[%clk 0:02:59.1]} 2. c4 {[%clk 0:03:00.5]}
2... e6 {[%clk 0:02:57.9]} 3. Nc3 {[%clk 0:03:00.5]} 3... Bb4 {[%clk 0:02:57.1]}
4. Qc2 {[%clk 0:03:00.6]} 4... c5 {[%clk 0:02:52.4]} 5. dxc5 {[%clk 0:03:00.4]}
5... O-O {[%clk 0:02:52.2]} 6. a3 {[%clk 0:02:59.1]} 6... Bxc5 {[%clk
0:02:51.9]} 7. Nf3 {[%clk 0:02:58.8]} 7... b6 {[%clk 0:02:52.5]} 8. e3 {[%clk
0:02:58.1]} 8... Bb7 {[%clk 0:02:52]} 9. Be2 {[%clk 0:02:57.7]} 9... Be7 {[%clk
0:02:49.8]} 10. b3 {[%clk 0:02:57.6]} 10... d6 {[%clk 0:02:49.3]} 11. Bb2 {[%clk
0:02:57.8]} 11... Nbd7 {[%clk 0:02:49]} 12. g4 {[%clk 0:02:57]} 12... Nxg4
{[%clk 0:02:26.9]} 13. Rg1 {[%clk 0:02:56]} 13... Nge5 {[%clk 0:02:23.9]} 14.
Ne4 {[%clk 0:02:40.8]} 14... Bxe4 {[%clk 0:02:11.9]} 15. Qxe4 {[%clk 0:02:39.9]}
15... Bf6 {[%clk 0:02:12.4]} 16. O-O-O {[%clk 0:02:12.6]} 16... Nxf3 {[%clk
0:01:41.6]} 17. Qxf3 {[%clk 0:01:57.6]} 17... Bxb2+ {[%clk 0:01:38.1]} 18. Kxb2
{[%clk 0:01:57.2]} 18... Ne5 {[%clk 0:01:34.1]} 19. Qg3 {[%clk 0:01:52.5]} 19...
Qf6 {[%clk 0:01:32.5]} 20. Ka2 {[%clk 0:01:46.7]} 20... Rfd8 {[%clk 0:01:23]}
21. f4 {[%clk 0:01:45.4]} 21... Ng6 {[%clk 0:01:21.2]} 22. Rd3 {[%clk
0:01:30.4]} 22... Rac8 {[%clk 0:01:15.2]} 23. Rgd1 {[%clk 0:01:29.4]} 23... b5
{[%clk 0:01:14.3]} 24. Rxd6 {[%clk 0:01:18.9]} 24... Rxd6 {[%clk 0:01:06.6]} 25.
Rxd6 {[%clk 0:01:18.3]} 25... Qc3 {[%clk 0:01:05.3]} 26. Qf3 {[%clk 0:00:29.4]}
26... Qc2+ {[%clk 0:00:57.6]} 27. Ka1 {[%clk 0:00:29.3]} 27... Qxb3 {[%clk
0:00:54.7]} 28. Rc6 {[%clk 0:00:27.9]} 28... Qxa3+ {[%clk 0:00:46.9]} 29. Kb1
{[%clk 0:00:27.7]} 29... Qb3+ {[%clk 0:00:44.8]} 30. Kc1 {[%clk 0:00:25.1]}
30... Rxc6 {[%clk 0:00:43.4]} 31. Qxc6 {[%clk 0:00:24.3]} 31... Qxe3+ {[%clk
0:00:44]} 32. Kd1 {[%clk 0:00:23.9]} 32... bxc4 {[%clk 0:00:41.1]} 33. Qc8+
{[%clk 0:00:20.1]} 33... Nf8 {[%clk 0:00:40.4]} 34. Qxc4 {[%clk 0:00:20]} 34...
Qg1+ {[%clk 0:00:39]} 35. Kd2 {[%clk 0:00:20.1]} 35... Qxh2 {[%clk 0:00:38.9]}
36. Qc7 {[%clk 0:00:19.9]} 36... g5 {[%clk 0:00:34.6]} 37. Qxa7 {[%clk
0:00:12.3]} 37... Qxf4+ {[%clk 0:00:34.3]} 38. Ke1 {[%clk 0:00:12.2]} 38... Kg7
{[%clk 0:00:32.6]} 39. Qa1+ {[%clk 0:00:10.8]} 39... Qf6 {[%clk 0:00:29.9]} 40.
Qa4 {[%clk 0:00:09.8]} 40... Ng6 {[%clk 0:00:28.7]} 41. Qb4 {[%clk 0:00:07.9]}
41... Nf4 {[%clk 0:00:28.3]} 42. Bg4 {[%clk 0:00:04.7]} 42... Nd3+ {[%clk
0:00:23.5]} 0-1

[Event "Late-Titled-Tuesday-Blitz-October-03-2023"]
[Site "Chess.com"]
[Date "2023.10.03"]
[Round "9"]
[White "alfianasybullina"]
[Black "Horokoskii"]
[Result "1/2-1/2"]
[WhiteElo "2395"]
[BlackElo "2127"]
[TimeControl "180+1"]
[EndTime "15:40:44 PDT"]
[Termination "Game drawn - insufficient material"]

1. d4 {[%clk 0:03:00.9]} 1... Nf6 {[%clk 0:02:58.7]} 2. Nf3 {[%clk 0:02:59.4]}
2... g6 {[%clk 0:02:54.2]} 3. Bg5 {[%clk 0:02:58.3]} 3... Bg7 {[%clk 0:02:51.5]}
4. Nbd2 {[%clk 0:02:58.8]} 4... d5 {[%clk 0:02:40.8]} 5. e3 {[%clk 0:02:58.3]}
5... O-O {[%clk 0:02:27.8]} 6. c4 {[%clk 0:02:57.8]} 6... c6 {[%clk 0:02:26.9]}
7. c5 {[%clk 0:02:53.1]} 7... Bg4 {[%clk 0:02:25.7]} 8. Bd3 {[%clk 0:02:51.6]}
8... h6 {[%clk 0:02:21.5]} 9. Bh4 {[%clk 0:02:50.5]} 9... Nbd7 {[%clk
0:02:19.4]} 10. h3 {[%clk 0:02:49.5]} 10... Bxf3 {[%clk 0:02:17.2]} 11. Nxf3
{[%clk 0:02:50.4]} 11... Qa5+ {[%clk 0:02:08.1]} 12. Qd2 {[%clk 0:02:45.4]}
12... Qxd2+ {[%clk 0:02:07.3]} 13. Kxd2 {[%clk 0:02:45.5]} 13... g5 {[%clk
0:02:07.9]} 14. Bg3 {[%clk 0:02:44.5]} 14... Nh5 {[%clk 0:02:08]} 15. Bh2 {[%clk
0:02:43.4]} 15... Rfe8 {[%clk 0:02:05.6]} 16. g4 {[%clk 0:02:33.6]} 16... Nhf6
{[%clk 0:02:04.9]} 17. Ne5 {[%clk 0:02:33]} 17... Nxe5 {[%clk 0:02:04.4]} 18.
Bxe5 {[%clk 0:02:32.9]} 18... Ne4+ {[%clk 0:02:04.8]} 19. Bxe4 {[%clk
0:02:31.8]} 19... Bxe5 {[%clk 0:02:05.1]} 20. Bg2 {[%clk 0:02:25.4]} 20... Bg7
{[%clk 0:02:03.7]} 21. b4 {[%clk 0:02:15.7]} 21... e5 {[%clk 0:01:59.1]} 22. Kd3
{[%clk 0:02:12]} 22... exd4 {[%clk 0:01:58]} 23. exd4 {[%clk 0:02:12.9]} 23...
Re7 {[%clk 0:01:56.2]} 24. Rhe1 {[%clk 0:02:04.4]} 24... Rae8 {[%clk 0:01:55.7]}
25. Rxe7 {[%clk 0:02:03.4]} 25... Rxe7 {[%clk 0:01:56.6]} 26. a4 {[%clk
0:02:00.9]} 26... Re6 {[%clk 0:01:42]} 27. b5 {[%clk 0:01:52.6]} 27... Rf6
{[%clk 0:01:41.6]} 28. Ra2 {[%clk 0:01:52.3]} 28... Rf4 {[%clk 0:01:41.3]} 29.
bxc6 {[%clk 0:01:41.3]} 29... bxc6 {[%clk 0:01:40.9]} 30. Re2 {[%clk 0:01:24.3]}
30... Bxd4 {[%clk 0:01:36.9]} 31. Re8+ {[%clk 0:01:22.6]} 31... Kg7 {[%clk
0:01:36.4]} 32. Rc8 {[%clk 0:01:22.5]} 32... Bxc5 {[%clk 0:01:33.9]} 33. Rxc6
{[%clk 0:01:21.4]} 33... Bxf2 {[%clk 0:01:32.2]} 34. Bxd5 {[%clk 0:01:19]} 34...
Rd4+ {[%clk 0:01:31.4]} 35. Ke2 {[%clk 0:01:18.8]} 35... Rxd5 {[%clk 0:01:31.2]}
36. Kxf2 {[%clk 0:01:18.8]} 36... Ra5 {[%clk 0:01:31.1]} 37. Rc4 {[%clk
0:01:18.8]} 37... Kg6 {[%clk 0:01:28.4]} 38. Kf3 {[%clk 0:01:17.2]} 38... f5
{[%clk 0:01:27.7]} 39. Rc6+ {[%clk 0:01:15.1]} 39... Kg7 {[%clk 0:01:28]} 40.
gxf5 {[%clk 0:01:15.1]} 40... Rxf5+ {[%clk 0:01:27.1]} 41. Kg3 {[%clk
0:01:13.7]} 41... Rf4 {[%clk 0:01:24.7]} 42. Ra6 {[%clk 0:01:13.1]} 42... Rf7
{[%clk 0:01:24.2]} 43. h4 {[%clk 0:01:13.6]} 43... gxh4+ {[%clk 0:01:21.8]} 44.
Kxh4 {[%clk 0:01:14.5]} 44... Rb7 {[%clk 0:01:21.1]} 45. Kh5 {[%clk 0:01:13.8]}
45... Rd7 {[%clk 0:01:18.9]} 46. a5 {[%clk 0:01:09.5]} 46... Rd5+ {[%clk
0:01:16.1]} 47. Kh4 {[%clk 0:01:08.3]} 47... Rd4+ {[%clk 0:01:16.5]} 48. Kh5
{[%clk 0:01:08.2]} 48... Rd5+ {[%clk 0:01:16.7]} 49. Kh4 {[%clk 0:01:08.3]}
49... Rd7 {[%clk 0:01:17.4]} 50. Kh5 {[%clk 0:01:07.1]} 50... Rf7 {[%clk
0:01:17.6]} 51. Rg6+ {[%clk 0:01:06]} 51... Kf8 {[%clk 0:01:11.1]} 52. Kxh6
{[%clk 0:01:06]} 52... Ke7 {[%clk 0:01:04.3]} 53. Ra6 {[%clk 0:01:04.5]} 53...
Rf6+ {[%clk 0:01:04.5]} 54. Rxf6 {[%clk 0:01:02.7]} 54... Kxf6 {[%clk
0:01:05.4]} 55. a6 {[%clk 0:01:02.7]} 55... Ke6 {[%clk 0:01:04.2]} 56. Kg6
{[%clk 0:01:03.3]} 56... Kd6 {[%clk 0:01:03.6]} 57. Kf6 {[%clk 0:01:04.2]} 57...
Kc6 {[%clk 0:01:04.2]} 58. Ke6 {[%clk 0:01:05]} 58... Kb5 {[%clk 0:01:04.7]} 59.
Kd5 {[%clk 0:01:03.8]} 59... Kxa6 {[%clk 0:01:05]} 60. Kc6 {[%clk 0:01:04]}
60... Ka5 {[%clk 0:01:04.5]} 61. Kc5 {[%clk 0:01:04.6]} 61... Ka4 {[%clk
0:01:03.3]} 62. Kc4 {[%clk 0:01:04.8]} 62... a5 {[%clk 0:01:02.1]} 63. Kc3
{[%clk 0:01:04.8]} 63... Ka3 {[%clk 0:01:02.7]} 64. Kc2 {[%clk 0:01:05]} 64...
Ka2 {[%clk 0:01:01.5]} 65. Kc1 {[%clk 0:01:04.2]} 65... a4 {[%clk 0:00:49]} 66.
Kc2 {[%clk 0:00:51.4]} 66... a3 {[%clk 0:00:46.8]} 67. Kc1 {[%clk 0:00:50.8]}
67... Ka1 {[%clk 0:00:47.2]} 68. Kc2 {[%clk 0:00:50.9]} 68... Ka2 {[%clk
0:00:47.7]} 69. Kc1 {[%clk 0:00:51.1]} 69... Kb3 {[%clk 0:00:46.8]} 70. Kb1
{[%clk 0:00:51.2]} 70... a2+ {[%clk 0:00:47.4]} 71. Ka1 {[%clk 0:00:51.7]} 71...
Kc3 {[%clk 0:00:48.1]} 72. Kxa2 {[%clk 0:00:50.9]} 1/2-1/2